bitfinex/quotes_BTCUSD_20251212
["timestamp","ask_amount","ask_price","bid_price","bid_amount"]
[1765526241786,0.15304113,92476.0,92475.0,0.001]
[1765526242126,0.05001839,92475.0,92473.0,0.22709163]
[1765526242330,0.07500126,92475.0,92473.0,0.22709163]
[1765526243355,0.07600126,92475.0,92473.0,0.22709163]
[1765526243569,0.07700126,92475.0,92473.0,0.22709163]
[1765526246461,0.05363126,92475.0,92473.0,0.22709163]
[1765526247225,0.07700126,92475.0,92473.0,0.22709163]
[1765526247623,0.05363126,92475.0,92473.0,0.22709163]
[1765526247829,0.03705157,92474.0,92473.0,0.01081396]
[1765526248194,0.07700126,92475.0,92474.0,0.216277]
[1765526248395,0.05363126,92475.0,92474.0,0.216277]
[1765526248807,0.05163126,92475.0,92474.0,0.216277]
[1765526249212,0.09070126,92475.0,92474.0,0.216277]
[1765526249823,0.09170126,92475.0,92473.0,0.22709139]
[1765526250039,0.03907,92474.0,92473.0,0.22709139]
[1765526250822,0.044504,92474.0,92473.0,0.22709139]
[1765526251231,0.044504,92472.0,92471.0,0.22709754]
[1765526251623,0.067874,92472.0,92471.0,0.22709754]
[1765526251822,0.083574,92472.0,92471.0,0.22709754]
[1765526252641,0.060204,92472.0,92471.0,0.22709754]
[1765526252846,0.084574,92472.0,92471.0,0.22709754]
[1765526253048,0.061204,92472.0,92471.0,0.22709754]
[1765526254234,0.001,92472.0,92471.0,0.22709754]
[1765526255734,0.001,92472.0,92471.0,0.26644754]
[1765526257961,0.001,92472.0,92471.0,0.24278754]
[1765526258176,0.001,92472.0,92471.0,0.22709754]
[1765526258733,0.045504,92472.0,92471.0,0.22709754]
[1765526258983,0.061204,92472.0,92471.0,0.22709754]
[1765526259149,0.07712484,92472.0,92471.0,0.22709754]
[1765526259342,0.04007,92472.0,92471.0,0.22709754]
[1765526260021,0.0167,92472.0,92471.0,0.22709754]
[1765526260377,0.04007,92472.0,92471.0,0.22709754]
[1765526260583,0.001,92472.0,92471.0,0.22709754]
[1765526261587,0.001,92472.0,92471.0,0.26644754]
[1765526267383,0.001,92472.0,92471.0,0.24278754]
[1765526269402,0.001,92472.0,92471.0,0.26561754]
[1765526271112,0.001,92472.0,92471.0,0.22709754]
[1765526280650,0.001,92472.0,92471.0,0.0108142]
[1765526280855,0.001,92472.0,92469.0,0.22710231]
[1765526280856,0.11857557,92472.0,92469.0,0.01081443]
[1765526281057,0.10335557,92472.0,92470.0,0.21628636]
[1765526281273,0.02349,92471.0,92470.0,0.21628636]
[1765526281488,0.03871,92471.0,92470.0,0.21628636]
[1765526282675,0.044504,92472.0,92470.0,0.21628636]
[1765526283271,0.02349,92471.0,92470.0,0.21628636]
[1765526283629,0.03871,92471.0,92469.0,0.2271015]
[1765526283830,0.01081455,92468.0,92462.0,0.21630356]
[1765526284041,0.01081455,92468.0,92450.0,0.55576413]
[1765526284042,0.02706,92463.0,92458.0,0.01081572]
[1765526284220,0.02706,92463.0,92459.0,0.0108156]
[1765526284221,0.01522,92461.0,92459.0,0.0108156]
[1765526284430,0.01522,92461.0,92460.0,0.21630975]
[1765526284835,0.01522,92461.0,92459.0,0.22712571]
[1765526284836,0.06523839,92461.0,92459.0,0.22712571]
[1765526285253,0.05001839,92462.0,92461.0,0.21630741]
[1765526285464,0.001,92471.0,92470.0,0.21628636]
[1765526285665,0.05101839,92471.0,92470.0,0.21628636]
[1765526285873,0.05001839,92471.0,92470.0,0.21628636]
[1765526286493,0.05001839,92471.0,92468.0,0.22710499]
[1765526286704,0.01522,92469.0,92467.0,0.01081466]
[1765526286899,0.01522,92468.0,92465.0,0.0108149]
[1765526287174,0.22711817,92463.0,92460.0,0.01081548]
[1765526287349,0.05001839,92465.0,92460.0,0.01081548]
[1765526287350,0.044504,92462.0,92460.0,0.01081548]
[1765526287576,0.09452239,92466.0,92465.0,0.0108149]
[1765526287785,0.23894245,92470.0,92465.0,0.0108149]
[1765526287786,0.01184,92470.0,92467.0,0.01081466]
[1765526288115,0.01184,92470.0,92468.0,0.21628884]
[1765526289450,0.01184,92470.0,92467.0,0.22710804]
[1765526289804,0.01284,92470.0,92467.0,0.22710804]
[1765526290010,0.06285839,92470.0,92469.0,0.2162887]
[1765526290272,0.06185839,92470.0,92469.0,0.2162887]
[1765526290444,0.05001839,92470.0,92469.0,0.2162887]
[1765526290643,0.05201839,92470.0,92469.0,0.2162887]
[1765526290823,0.05101839,92470.0,92469.0,0.2162887]
[1765526291198,0.05201839,92470.0,92469.0,0.2162887]
[1765526291823,0.05101839,92470.0,92469.0,0.2162887]
[1765526292102,0.002,92470.0,92469.0,0.2162887]
[1765526293840,0.21629404,92467.0,92463.0,0.01081513]
[1765526294044,0.01522,92464.0,92463.0,0.01081513]
[1765526294658,0.02349,92466.0,92463.0,0.22711786]
[1765526294851,0.001,92470.0,92465.0,0.21629805]
[1765526295052,0.0496897,92471.0,92465.0,0.21629805]
[1765526295664,0.0496897,92471.0,92467.0,0.01081466]
[1765526296113,0.0496897,92471.0,92468.0,0.01081455]
[1765526296262,0.0388755,92471.0,92468.0,0.01081455]
[1765526296464,0.01184,92471.0,92468.0,0.22710369]
[1765526296701,0.01284,92471.0,92468.0,0.22710369]
[1765526296908,0.01284,92471.0,92469.0,0.21628711]
[1765526297482,0.01384,92471.0,92469.0,0.21628711]
[1765526297893,0.01184,92471.0,92469.0,0.21628711]
[1765526298067,0.01284,92471.0,92469.0,0.21628711]
[1765526298437,0.01384,92471.0,92469.0,0.21628711]
[1765526298847,0.01284,92471.0,92469.0,0.21628711]
[1765526299205,0.01484,92471.0,92469.0,0.21628711]
[1765526301239,0.01484,92471.0,92468.0,0.22710345]
[1765526301442,0.02287,92470.0,92468.0,0.22710345]
[1765526302367,0.01555,92469.0,92468.0,0.22710345]
[1765526302747,0.03842,92469.0,92468.0,0.22710345]
[1765526303321,0.02860246,92470.0,92468.0,0.22710345]
[1765526303662,0.01284,92471.0,92470.0,0.21628636]
[1765526304063,0.01184,92471.0,92470.0,0.21628636]
[1765526304753,0.01284,92471.0,92470.0,0.21628636]
[1765526304960,0.05326,92471.0,92470.0,0.21628636]
[1765526305166,0.10875719,92471.0,92467.0,0.01081466]
[1765526305371,0.060054,92468.0,92465.0,0.0108149]
[1765526305569,0.01081455,92468.0,92465.0,0.0108149]
[1765526305878,0.01081443,92469.0,92465.0,0.0108149]
[1765526305879,0.05001839,92469.0,92468.0,0.21629038]
[1765526306093,0.01384,92471.0,92470.0,0.21628636]
[1765526306298,0.01484,92471.0,92470.0,0.21628636]
[1765526306827,0.002,92471.0,92470.0,0.21628636]
[1765526307006,0.00161287,92475.0,92472.0,0.21628065]
[1765526307457,0.00161287,92475.0,92474.0,0.216277]
[1765526307665,0.00161287,92475.0,92474.0,0.232047]
[1765526308287,0.00161287,92475.0,92474.0,0.216277]
[1765526308915,0.00461287,92475.0,92474.0,0.216277]
[1765526309896,0.00561287,92475.0,92474.0,0.216277]
[1765526310922,0.07689247,92475.0,92472.0,0.01081408]
[1765526311110,0.01555,92473.0,92472.0,0.01081408]
[1765526312014,0.01555,92473.0,92472.0,0.227094]
[1765526312413,0.00461287,92475.0,92474.0,0.216277]
[1765526313572,0.00261287,92475.0,92474.0,0.216277]
[1765526314127,0.001,92475.0,92474.0,0.216277]
[1765526314330,0.001,92475.0,92474.0,0.256157]
[1765526315155,0.004,92475.0,92474.0,0.256157]
[1765526315769,0.003,92475.0,92474.0,0.256157]
[1765526316394,0.0006185,92476.0,92474.0,0.256157]
[1765526316593,0.0006185,92476.0,92474.0,0.216277]
[1765526322741,0.02287,92475.0,92474.0,0.216277]
[1765526322961,0.08453687,92475.0,92474.0,0.216277]
[1765526323667,0.04003287,92475.0,92474.0,0.216277]
[1765526324608,0.09005126,92475.0,92474.0,0.216277]
[1765526324809,0.04003287,92475.0,92473.0,0.22709114]
[1765526325010,0.03842,92474.0,92473.0,0.22709114]
[1765526326452,0.04042,92474.0,92473.0,0.22709114]
[1765526326768,0.04142,92474.0,92473.0,0.22709114]
[1765526328977,0.05631868,92474.0,92471.0,0.0108142]
[1765526329199,0.0108142,92471.0,92468.0,0.01081455]
[1765526329353,0.02755,92469.0,92467.0,0.22710723]
[1765526329560,0.01581,92468.0,92467.0,0.01081466]
[1765526329757,0.04025,92468.0,92467.0,0.01081466]
[1765526330788,0.0980505,92468.0,92467.0,0.01081466]
[1765526333687,0.1000505,92468.0,92467.0,0.01081466]
[1765526339250,0.04225,92468.0,92467.0,0.01081466]
[1765526341011,0.01781,92468.0,92467.0,0.01081466]
[1765526341465,0.04225,92468.0,92467.0,0.01081466]
[1765526344121,0.01781,92468.0,92467.0,0.01081466]
[1765526345362,0.04225,92468.0,92467.0,0.01081466]
[1765526346425,0.07754096,92468.0,92467.0,0.01081466]
[1765526346626,0.04225,92468.0,92467.0,0.01081466]
[1765526347074,0.04225,92468.0,92462.0,0.01081525]
[1765526347075,0.044504,92466.0,92462.0,0.01081525]
[1765526347375,0.044504,92464.0,92463.0,0.01081513]
[1765526347752,0.02444,92464.0,92463.0,0.01081513]
[1765526347940,0.096614,92464.0,92463.0,0.01081513]
[1765526350863,0.05211,92464.0,92463.0,0.01081513]
[1765526352504,0.01186,92464.0,92463.0,0.01081513]
[1765526352729,0.044504,92467.0,92466.0,0.21629571]
[1765526353123,0.06175839,92469.0,92468.0,0.21629104]
[1765526353301,0.05001839,92469.0,92468.0,0.21629104]
[1765526354747,0.05101839,92469.0,92468.0,0.21629104]
[1765526355405,0.05201839,92469.0,92468.0,0.21629104]
[1765526357383,0.07653839,92469.0,92468.0,0.21629104]
[1765526358118,0.10675914,92469.0,92461.0,0.01081537]
[1765526358318,0.08321913,92463.0,92455.0,0.01081607]
[1765526358584,0.07641364,92462.0,92457.0,0.01081583]
[1765526358787,0.04227249,92461.0,92458.0,0.01081572]
[1765526359084,0.01232,92463.0,92461.0,0.21630692]
[1765526359516,0.01232,92466.0,92465.0,0.21629805]
[1765526359674,0.001,92469.0,92468.0,0.21629104]
[1765526359995,0.001,92469.0,92468.0,0.25733104]
[1765526360155,0.05163126,92475.0,92474.0,0.216277]
[1765526362137,0.05363126,92475.0,92474.0,0.216277]
[1765526364067,0.09813526,92475.0,92474.0,0.216277]
[1765526364286,0.09813526,92475.0,92467.0,0.01081466]
[1765526364287,0.0108142,92471.0,92467.0,0.01081466]
[1765526364421,0.02586,92468.0,92467.0,0.01081466]
[1765526364830,0.05038,92468.0,92467.0,0.01081466]
[1765526367238,0.10039839,92468.0,92467.0,0.01081466]
[1765526367878,0.10239839,92468.0,92467.0,0.01081466]
[1765526368001,0.02686,92468.0,92467.0,0.01081466]
[1765526368410,0.05138,92468.0,92467.0,0.01081466]
[1765526368610,0.05338,92468.0,92467.0,0.01081466]
[1765526370139,0.05438,92468.0,92467.0,0.01081466]
[1765526370895,0.01428,92468.0,92467.0,0.01081466]
[1765526371112,0.05438,92468.0,92467.0,0.01081466]
[1765526373448,0.02986,92468.0,92467.0,0.01081466]
[1765526376055,0.01428,92468.0,92467.0,0.01081466]
[1765526376257,0.0388,92468.0,92467.0,0.01081466]
[1765526376815,0.05438,92468.0,92467.0,0.01081466]
[1765526377242,0.10439839,92468.0,92467.0,0.01081466]
[1765526377672,0.01428,92468.0,92467.0,0.01081466]
[1765526377876,0.004,92468.0,92467.0,0.01081466]
[1765526394733,0.044504,92467.0,92466.0,0.22711049]
[1765526394957,0.060834,92467.0,92466.0,0.22711049]
[1765526395162,0.01633,92467.0,92466.0,0.22711049]
[1765526395361,0.060834,92467.0,92466.0,0.22711049]
[1765526395935,0.063834,92467.0,92466.0,0.22711049]
[1765526396670,0.064834,92467.0,92466.0,0.22711049]
[1765526397336,0.089764,92467.0,92466.0,0.22711049]
[1765526401059,0.089764,92467.0,92466.0,0.01081478]
[1765526401259,0.089764,92467.0,92465.0,0.21629803]
[1765526401482,0.064834,92467.0,92464.0,0.01081501]
[1765526401677,0.064834,92467.0,92466.0,0.21629571]
[1765526401883,0.064834,92467.0,92464.0,0.2271154]
[1765526402121,0.061834,92467.0,92465.0,0.21629612]
[1765526402537,0.01201,92468.0,92467.0,0.21629338]
[1765526403465,0.03694,92468.0,92467.0,0.21629338]
[1765526404081,0.05001839,92470.0,92469.0,0.2162887]
[1765526405477,0.05001839,92470.0,92463.0,0.01081513]
[1765526405478,0.044504,92461.0,92455.0,0.21631987]
[1765526405695,0.21629983,92465.0,92462.0,0.01081525]
[1765526405696,0.05001839,92464.0,92462.0,0.01081525]
[1765526405909,0.06202839,92464.0,92461.0,0.01081537]
[1765526406037,0.06202839,92464.0,92461.0,0.22712053]
[1765526406240,0.02893,92470.0,92468.0,0.21629104]
[1765526406241,0.004,92470.0,92468.0,0.21629104]
[1765526406471,0.044504,92464.0,92463.0,0.01081513]
[1765526406642,0.044504,92464.0,92463.0,0.2271166]
[1765526406837,0.08024855,92468.0,92463.0,0.01081513]
[1765526407066,0.04997829,92468.0,92466.0,0.22710858]
[1765526407683,0.00161287,92475.0,92471.0,0.0108142]
[1765526407998,0.00161287,92475.0,92473.0,0.21627934]
[1765526408421,0.0006185,92476.0,92475.0,0.21627466]
[1765526408583,0.0006185,92476.0,92475.0,0.23175466]
[1765526408779,0.0006185,92476.0,92475.0,0.25594466]
[1765526411532,0.0006185,92476.0,92475.0,0.23175466]
[1765526418786,0.01081408,92472.0,92469.0,0.01081443]
[1765526419086,0.216277,92474.0,92470.0,0.01081431]
[1765526419087,0.05531796,92473.0,92470.0,0.01081431]
[1765526419289,0.05531796,92473.0,92470.0,0.22709994]
[1765526419447,0.044504,92473.0,92470.0,0.22709994]
[1765526419879,0.044504,92473.0,92471.0,0.21628185]
[1765526420700,0.0387,92472.0,92471.0,0.21628185]
[1765526421077,0.044504,92473.0,92471.0,0.21628185]
[1765526421503,0.04673537,92476.0,92475.0,0.21627466]
[1765526423378,0.04773537,92476.0,92475.0,0.21627466]
[1765526424685,0.04773537,92476.0,92474.0,0.2162765]
[1765526424870,0.01081466,92467.0,92464.0,0.01081501]
[1765526425076,0.01202,92467.0,92465.0,0.22711295]
[1765526425439,0.01202,92467.0,92465.0,0.0108149]
[1765526425838,0.056524,92467.0,92465.0,0.0108149]
[1765526426511,0.079364,92467.0,92465.0,0.0118149]
[1765526426892,0.056524,92467.0,92465.0,0.228111]
[1765526427698,0.044504,92467.0,92466.0,0.0714821]
[1765526427866,0.044504,92467.0,92465.0,0.228111]
[1765526428308,0.044504,92467.0,92465.0,0.227111]
[1765526429445,0.0387,92466.0,92465.0,0.227111]
[1765526430046,0.01586,92466.0,92465.0,0.227111]
[1765526431444,0.05001839,92465.0,92459.0,0.03247046]
[1765526431629,0.05001839,92457.0,92452.0,0.22714363]
[1765526431981,0.22714848,92451.0,92449.0,0.0324745]
[1765526432220,0.25387245,92453.0,92449.0,0.04329127]
[1765526432393,0.03371,92453.0,92450.0,0.2271498]
[1765526432548,0.55611597,92470.0,92450.0,0.2271498]
[1765526432549,0.05001839,92459.0,92458.0,0.21631443]
[1765526432755,0.01202,92460.0,92458.0,0.21631443]
[1765526432961,0.21629796,92466.0,92462.0,0.01081525]
[1765526432962,0.05001839,92466.0,92462.0,0.01081525]
[1765526433155,0.05001839,92466.0,92463.0,0.22711588]
[1765526433359,0.03486,92465.0,92463.0,0.22711588]
[1765526433760,0.01202,92465.0,92463.0,0.22711588]
[1765526433960,0.02284,92464.0,92463.0,0.22711588]
[1765526434365,0.02284,92464.0,92457.0,0.01081583]
[1765526434366,0.05001839,92463.0,92455.0,0.22713724]
[1765526434585,0.11038239,92463.0,92460.0,0.01081548]
[1765526434787,0.11038239,92463.0,92460.0,0.22712357]
[1765526434950,0.01302,92465.0,92462.0,0.01081525]
[1765526435153,0.05001839,92467.0,92465.0,0.0108149]
[1765526435717,0.05001839,92467.0,92465.0,0.22711143]
[1765526436358,0.07285839,92467.0,92465.0,0.22711143]
[1765526436489,0.07285839,92467.0,92464.0,0.01081501]
[1765526436692,0.01202,92464.0,92461.0,0.01081537]
[1765526436895,0.06083376,92461.0,92458.0,0.01081572]
[1765526437099,0.03486,92464.0,92459.0,0.22712769]
[1765526437297,0.01202,92464.0,92462.0,0.21630398]
[1765526437501,0.05001839,92467.0,92466.0,0.21629571]
[1765526437697,0.05001839,92465.0,92462.0,0.01081525]
[1765526437886,0.06083329,92465.0,92462.0,0.01081525]
[1765526438082,0.07285329,92465.0,92462.0,0.01081525]
[1765526438396,0.08487839,92465.0,92462.0,0.01081525]
[1765526438603,0.08487839,92465.0,92463.0,0.21630273]
[1765526440443,0.08587839,92465.0,92463.0,0.21630273]
[1765526440703,0.044504,92464.0,92463.0,0.21630273]
[1765526441240,0.083204,92464.0,92462.0,0.01081525]
[1765526441446,0.05001839,92458.0,92456.0,0.01081595]
[1765526441713,0.05001839,92457.0,92456.0,0.22713415]
[1765526441859,0.02284,92463.0,92460.0,0.01081548]
[1765526442063,0.001,92464.0,92462.0,0.22712032]
[1765526442480,0.001,92464.0,92462.0,0.22711969]
[1765526443260,0.06203839,92465.0,92464.0,0.21630039]
[1765526444076,0.01202,92471.0,92465.0,0.0108149]
[1765526444326,0.2907,92477.0,92473.0,0.2270914]
[1765526444493,0.05001839,92475.0,92473.0,0.01081396]
[1765526444673,0.01081396,92473.0,92470.0,0.01081431]
[1765526444877,0.01202,92471.0,92470.0,0.01081431]
[1765526445079,0.02788,92471.0,92468.0,0.05943481]
[1765526445305,0.05272,92471.0,92469.0,0.2162872]
[1765526446417,0.003,92471.0,92470.0,0.06430026]
[1765526446623,0.003,92471.0,92469.0,0.28554572]
[1765526446624,0.002,92471.0,92469.0,0.2162872]
[1765526446954,0.00223137,92476.0,92474.0,0.2162751]
[1765526447157,0.0006185,92476.0,92475.0,0.02574]
[1765526447330,0.0006185,92476.0,92475.0,0.0505]
[1765526447534,0.0006185,92476.0,92473.0,0.22709231]
[1765526447865,0.0006185,92476.0,92475.0,0.02649186]
[1765526448047,0.0016185,92476.0,92475.0,0.02649186]
[1765526448248,0.0016185,92476.0,92475.0,0.12450537]
[1765526448815,0.0016185,92476.0,92475.0,0.01081186]
[1765526449018,0.0016185,92476.0,92475.0,0.05125186]
[1765526449218,0.0006185,92476.0,92475.0,0.05125186]
[1765526449627,0.0520785,92476.0,92475.0,0.01081186]
[1765526449849,0.0520785,92476.0,92457.0,0.01006]
[1765526449850,0.05001839,92475.0,92472.0,0.01081408]
[1765526450068,0.0006185,92476.0,92473.0,0.01081396]
[1765526450337,0.0006185,92476.0,92473.0,0.22709187]
[1765526450532,0.0006185,92476.0,92473.0,0.01081396]
[1765526450680,0.0006185,92476.0,92475.0,0.01568]
[1765526451112,0.0036185,92476.0,92475.0,0.01568]
[1765526451459,0.0036185,92476.0,92475.0,0.04044]
[1765526451602,0.0006185,92476.0,92475.0,0.04044]
[1765526452121,0.0006185,92476.0,92475.0,0.01568]
[1765526452325,0.0006185,92476.0,92473.0,0.22709243]
[1765526453374,0.0016185,92476.0,92473.0,0.22709243]
[1765526453580,0.0006185,92476.0,92473.0,0.22709243]
[1765526456073,0.00223137,92476.0,92473.0,0.01081396]
[1765526456275,0.02504498,92476.0,92473.0,0.01081396]
[1765526456415,0.04910498,92476.0,92472.0,0.01081408]
[1765526456989,0.03829137,92476.0,92473.0,0.01081396]
[1765526457197,0.26537812,92476.0,92472.0,0.01081408]
[1765526457406,0.26537812,92476.0,92473.0,0.01081396]
[1765526457407,0.04910498,92476.0,92473.0,0.01081396]
[1765526457630,0.03829137,92476.0,92473.0,0.01081396]
[1765526458633,0.04910498,92476.0,92473.0,0.01081396]
[1765526458993,0.03829137,92476.0,92473.0,0.01081396]
[1765526460007,0.03829137,92476.0,92474.0,0.216277]
[1765526460246,0.03829137,92476.0,92473.0,0.2270911]
[1765526460475,0.01423137,92476.0,92473.0,0.01081396]
[1765526460872,0.01423137,92476.0,92473.0,0.22709329]
[1765526461306,0.01081385,92474.0,92470.0,0.25956461]
[1765526461506,0.01081373,92475.0,92472.0,0.01081408]
[1765526461711,0.01081373,92475.0,92465.0,0.04328206]
[1765526461712,0.25342902,92471.0,92465.0,0.04328206]
[1765526461936,0.01081443,92469.0,92465.0,0.0108149]
[1765526462134,0.01081443,92469.0,92466.0,0.01081478]
[1765526462383,0.0217442,92471.0,92467.0,0.01081466]
[1765526462566,0.0217442,92471.0,92468.0,0.01081455]
[1765526462567,0.01093,92471.0,92468.0,0.01081455]
[1765526462944,0.01093,92471.0,92469.0,0.21628656]
[1765526463261,0.0217442,92471.0,92468.0,0.01081455]
[1765526463845,0.044504,92468.0,92467.0,0.001]
[1765526464049,0.059904,92468.0,92467.0,0.001]
[1765526464261,0.01081548,92460.0,92450.0,0.01081665]
[1765526464468,0.044504,92454.0,92451.0,0.03353196]
[1765526464678,0.01081537,92461.0,92457.0,0.01081583]
[1765526464881,0.01081537,92461.0,92457.0,0.03557583]
[1765526465085,0.01081537,92461.0,92458.0,0.01081572]
[1765526465294,0.01081478,92466.0,92460.0,0.24280343]
[1765526465500,0.05001839,92465.0,92460.0,0.24280343]
[1765526465712,0.044504,92469.0,92464.0,0.01081501]
[1765526465890,0.01081466,92467.0,92462.0,0.22712017]
[1765526466095,0.01081466,92467.0,92463.0,0.01081513]
[1765526466707,0.01381455,92468.0,92464.0,0.01081501]
[1765526466914,0.01081455,92468.0,92464.0,0.01081501]
[1765526467116,0.01081466,92467.0,92464.0,0.01081501]
[1765526467321,0.0115746,92467.0,92464.0,0.01081501]
[1765526467711,0.0105746,92467.0,92464.0,0.01081501]
[1765526468127,0.01081478,92466.0,92461.0,0.01081537]
[1765526468348,0.22711413,92465.0,92461.0,0.01081537]
[1765526468529,0.21630451,92463.0,92458.0,0.01081572]
[1765526468727,0.0108149,92465.0,92460.0,0.01081548]
[1765526468879,0.0108149,92465.0,92462.0,0.01081525]
[1765526469087,0.01081501,92464.0,92461.0,0.01081537]
[1765526469301,0.0108149,92465.0,92462.0,0.01081525]
[1765526469683,0.046504,92467.0,92464.0,0.01081501]
[1765526469938,0.002,92467.0,92464.0,0.01081501]
[1765526470096,0.01081455,92468.0,92464.0,0.01081501]
[1765526470926,0.044504,92464.0,92461.0,0.01081537]
[1765526471146,0.03821525,92462.0,92459.0,0.22712769]
[1765526471361,0.056504,92462.0,92459.0,0.22712769]
[1765526471579,0.012,92462.0,92459.0,0.0108156]
[1765526471784,0.02281525,92462.0,92458.0,0.01081572]
[1765526471991,0.02281525,92462.0,92459.0,0.0108156]
[1765526472197,0.012,92462.0,92459.0,0.0108156]
[1765526472634,0.012,92462.0,92460.0,0.21630975]
[1765526473575,0.044504,92463.0,92462.0,0.21630507]
[1765526473805,0.044504,92466.0,92462.0,0.21630507]
[1765526474007,0.044504,92466.0,92463.0,0.21630076]
[1765526474659,0.044504,92466.0,92464.0,0.01081501]
[1765526475347,0.044504,92466.0,92465.0,0.21629805]
[1765526475623,0.02281443,92469.0,92468.0,0.21629104]
[1765526475624,0.012,92469.0,92468.0,0.21629104]
[1765526475863,0.06201839,92469.0,92468.0,0.21629104]
[1765526476791,0.06501839,92469.0,92468.0,0.21629104]
[1765526478026,0.06601839,92469.0,92468.0,0.21629104]
[1765526479035,0.08994839,92469.0,92468.0,0.21629104]
[1765526479769,0.05401839,92469.0,92468.0,0.21629104]
[1765526481354,0.01979,92469.0,92466.0,0.22710838]
[1765526481929,0.01979,92469.0,92467.0,0.21629117]
[1765526482252,0.01579,92469.0,92467.0,0.21629117]
[1765526482450,0.03861,92469.0,92466.0,0.22710838]
[1765526482679,0.04261,92469.0,92467.0,0.21629112]
[1765526482890,0.04161,92469.0,92467.0,0.21629112]
[1765526483090,0.03861,92469.0,92467.0,0.21629112]
[1765526483291,0.01879,92469.0,92466.0,0.01081478]
[1765526483492,0.01879,92469.0,92466.0,0.22710826]
[1765526483675,0.03363455,92468.0,92464.0,0.22711363]
[1765526483876,0.02282,92468.0,92465.0,0.22711106]
[1765526484206,0.004,92469.0,92466.0,0.22710893]
[1765526484415,0.003,92469.0,92466.0,0.22710893]
[1765526484623,0.02282,92468.0,92466.0,0.22710893]
[1765526484843,0.02382,92468.0,92466.0,0.22710893]
[1765526485068,0.02282,92468.0,92466.0,0.22710893]
[1765526485567,0.004,92469.0,92467.0,0.21629149]
[1765526485815,0.003,92469.0,92468.0,0.03858]
[1765526486019,0.00223137,92476.0,92474.0,0.216277]
[1765526488078,0.00223137,92476.0,92473.0,0.01081396]
[1765526488240,0.07662224,92474.0,92465.0,0.0108149]
[1765526488437,0.07662224,92474.0,92467.0,0.01081466]
[1765526488438,0.044504,92470.0,92467.0,0.01081466]
[1765526488612,0.044504,92470.0,92467.0,0.22710759]
[1765526489648,0.07813831,92470.0,92467.0,0.01081466]
[1765526489861,0.02282,92469.0,92467.0,0.01081466]
[1765526490197,0.044504,92470.0,92467.0,0.22710628]
[1765526490392,0.044504,92470.0,92468.0,0.21628905]
[1765526490578,0.01081513,92463.0,92460.0,0.01081548]
[1765526490878,0.0108149,92465.0,92461.0,0.01081537]
[1765526491031,0.0226049,92465.0,92462.0,0.01081525]
[1765526491249,0.01179,92465.0,92462.0,0.22711856]
[1765526491618,0.03461,92465.0,92462.0,0.22711856]
[1765526491833,0.01081572,92458.0,92455.0,0.01081607]
[1765526492067,0.03461,92457.0,92454.0,0.01081618]
[1765526492261,0.01179,92457.0,92456.0,0.21631911]
[1765526492690,0.01081537,92461.0,92458.0,0.22712955]
[1765526492912,0.06083376,92461.0,92458.0,0.01081572]
[1765526493113,0.0266056,92459.0,92455.0,0.01081607]
[1765526493313,0.060294,92456.0,92455.0,0.01081607]
[1765526493512,0.06083364,92462.0,92458.0,0.22712908]
[1765526493798,0.09452239,92461.0,92459.0,0.21630986]
[1765526494000,0.05001839,92468.0,92462.0,0.01081525]
[1765526494257,0.05001839,92468.0,92458.0,0.03361572]
[1765526494258,0.01179,92473.0,92470.0,0.01081431]
[1765526494432,0.05001839,92472.0,92470.0,0.01081431]
[1765526494839,0.05224976,92476.0,92475.0,0.21627466]
[1765526495039,0.00223137,92476.0,92475.0,0.21627466]
[1765526496712,0.05663137,92476.0,92473.0,0.01081396]
[1765526498139,0.02282,92475.0,92473.0,0.01081396]
[1765526501329,0.02282,92475.0,92470.0,0.01081431]
[1765526501510,0.02282,92475.0,92457.0,0.21631459]
[1765526501511,0.01081443,92469.0,92465.0,0.21629772]
[1765526501752,0.02712,92467.0,92465.0,0.21629772]
[1765526501958,0.02712,92467.0,92451.0,0.03286]
[1765526501959,0.01081513,92463.0,92459.0,0.03565058]
[1765526502160,0.01081501,92464.0,92461.0,0.01081537]
[1765526502319,0.24993786,92463.0,92458.0,0.01081572]
[1765526502521,0.22712278,92461.0,92457.0,0.21631621]
[1765526502722,0.22712278,92461.0,92457.0,0.22713204]
[1765526502901,0.03363537,92461.0,92458.0,0.01081572]
[1765526503107,0.02282,92461.0,92458.0,0.22712841]
[1765526503325,0.02282,92461.0,92459.0,0.21630993]
[1765526503731,0.05531901,92464.0,92461.0,0.01081537]
[1765526503928,0.02282,92463.0,92461.0,0.01081537]
[1765526504805,0.02282,92463.0,92461.0,0.01181537]
[1765526505188,0.02282,92463.0,92461.0,0.01081537]
[1765526505414,0.02282,92463.0,92461.0,0.22712059]
[1765526506165,0.05001839,92466.0,92465.0,0.22711194]
[1765526506591,0.0608327,92470.0,92467.0,0.01081466]
[1765526506765,0.05001839,92471.0,92469.0,0.01081443]
[1765526506908,0.05001839,92471.0,92469.0,0.22710313]
[1765526507338,0.05001839,92472.0,92469.0,0.22710313]
[1765526507547,0.27711475,92472.0,92467.0,0.2271058]
[1765526507988,0.05001839,92473.0,92470.0,0.01081431]
[1765526508418,0.044504,92464.0,92463.0,0.01081513]
[1765526508780,0.05001839,92465.0,92463.0,0.01081513]
[1765526509183,0.05001839,92466.0,92464.0,0.2271154]
[1765526509604,0.05001839,92467.0,92464.0,0.2271154]
[1765526510776,0.01081478,92466.0,92463.0,0.001]
[1765526511023,0.08414305,92467.0,92464.0,0.01081501]
[1765526511204,0.08414305,92467.0,92464.0,0.01181501]
[1765526511446,0.07332839,92467.0,92464.0,0.01181501]
[1765526511817,0.07332839,92467.0,92464.0,0.01081501]
[1765526512625,0.21629968,92465.0,92463.0,0.001]
[1765526513015,0.23960968,92465.0,92463.0,0.001]
[1765526513215,0.23960968,92465.0,92454.0,0.22713783]
[1765526513216,0.01081548,92460.0,92454.0,0.22713783]
[1765526513451,0.01081583,92457.0,92453.0,0.25961203]
[1765526513600,0.22712799,92459.0,92454.0,0.01081618]
[1765526513796,0.0108156,92459.0,92454.0,0.22713804]
[1765526514149,0.0108156,92459.0,92456.0,0.01081595]
[1765526514498,0.044504,92460.0,92457.0,0.22713243]
[1765526514756,0.044504,92460.0,92459.0,0.21631209]
[1765526518279,0.01161,92462.0,92461.0,0.21630741]
[1765526518430,0.06162839,92462.0,92461.0,0.21630741]
[1765526518636,0.08493839,92462.0,92459.0,0.22712769]
[1765526518841,0.02331,92461.0,92459.0,0.22712769]
[1765526519351,0.06162839,92462.0,92459.0,0.22712769]
[1765526519784,0.06162839,92462.0,92461.0,0.21630741]
[1765526520466,0.05001839,92462.0,92461.0,0.21630741]
[1765526524571,0.05001839,92462.0,92461.0,0.24202741]